Cogmind - Beta 12 @@@ ROGUE MODE // 2023.10.09 @ 21:17:46 Player: ChromeKnight Result: Destroyed by B-86 Titan with Hardcell Cannon Performance ------------- Evolutions (6) 3000 Regions Visited (11) 2200 Robots Destroyed (57) 285 Value Destroyed (2059) 2059 Prototype IDs (4) 80 Alien Tech Used (0) 0 Bonus (1043) 1043 TOTAL SCORE: 8667 Bonus ------- Follower Combat Kills 543 Entered DSFs 500 Cogmind --------- Core Integrity 0/1150 Matter 300/300 Energy 168/170 System Corruption 0% Temperature Cool (34) Movement Hovering (61) Location -4/Extension Parts ------- > --- POWER (2) -------- Light Antimatter Reactor > --- PROPULSION (6) --- Antigrav System Improved Gyrokinetic Inverter > --- UTILITY (8) ------ Advanced Heat Sink Advanced Melee Analysis Suite Advanced Melee Analysis Suite Advanced Melee Analysis Suite Advanced Melee Analysis Suite Armor Integrity Analyzer > --- WEAPON (3) ------- (None) > --- INVENTORY (5) ---- Long-range Terrain Scanner Peak State ------------ > --- POWER ------------ Light Ion Engine > --- PROPULSION ------- Enhanced Flexi-carbon Leg Antigrav System Improved Gyrokinetic Inverter Improved Gyrokinetic Inverter Improved Gyrokinetic Inverter Improved Gyrokinetic Inverter > --- UTILITY ---------- Advanced Heat Sink Medium Storage Unit Improved Signal Interpreter Improved Melee Analysis Suite Advanced Melee Analysis Suite Advanced Melee Analysis Suite Armor Integrity Analyzer System Shield > --- WEAPON ----------- Bore Cannon > --- INVENTORY -------- Improved Gyrokinetic Inverter Advanced Cooling System Long-range Terrain Scanner Advanced Melee Analysis Suite Advanced Melee Analysis Suite Advanced Melee Analysis Suite Improved Transmission Jammer Advanced Reaction Control System Medium Reactive Plating Medium Insulated Plating [Rating: 82] Favorites ----------- Power Improved Ion Engine Engine Improved Ion Engine Power Core Fission Core Reactor Light Antimatter Reactor Propulsion Aluminum Leg Treads Light Treads Leg Aluminum Leg Hover Unit Improved Gyrokinetic Inverter Utility Improved Medium Armor Plating Device Advanced Power Amplifier Storage Medium Storage Unit Processor Advanced Melee Analysis Suite Hackware System Shield Protection Improved Medium Armor Plating Weapon Small Laser Energy Gun Small Laser Energy Cannon Phase Cannon Ballistic Gun Flak Gun Ballistic Cannon Bore Cannon Impact Weapon Makeshift Hammer Build | -11 -10 -10 -10 -9 -8 -7 -6 -5 -5 -4 -4 ------- Run | Jun Mat Min Exi Min Mat Fac Fac Fac DSF Fac Ext Slots Evolved 12 | . . . . . 4 2 2 2 . 2 . Power 1 | . . . . . . . . 1 . . . Propulsion 4 | . . . . . 2 . . 1 . 1 . Utility 6 | . . . . . 2 2 2 . . . . Weapon 1 | . . . . . . . . . . 1 . Parts Attached 102 | 6 3 6 3 1 19 6 10 10 7 12 19 Power 13 | 1 1 1 . . 2 . 1 3 . 1 3 Engine 11 | 1 1 1 . . 2 . 1 3 . 1 1 Core 1 | . . . . . . . . . . . 1 Reactor 1 | . . . . . . . . . . . 1 Propulsion 32 | 2 . 2 . 1 9 1 4 2 4 3 4 Treads 2 | 2 . . . . . . . . . . . Leg 15 | . . 2 . 1 9 1 . . . 1 1 Wheel . | . . . . . . . . . . . . Hover 15 | . . . . . . . 4 2 4 2 3 Flight . | . . . . . . . . . . . . Utility 40 | 1 2 1 . . 5 4 4 5 3 5 10 Device 14 | . 1 . . . . 1 3 3 . 3 3 Storage 3 | 1 1 . . . 1 . . . . . . Processor 12 | . . 1 . . 1 1 1 . 3 1 4 Hackware 2 | . . . . . . 1 . 1 . . . Protection 9 | . . . . . 3 1 . 1 . 1 3 Artifact . | . . . . . . . . . . . . Weapon 17 | 2 . 2 3 . 3 1 1 . . 3 2 Energy Gun 8 | 2 . 1 3 . 2 . . . . . . Energy Cannon 1 | . . . . . . . . . . 1 . Ballistic Gun 3 | . . 1 . . 1 . 1 . . . . Ballistic Cannon 3 | . . . . . . . . . . 2 1 Launcher . | . . . . . . . . . . . . Special Weapon . | . . . . . . . . . . . . Impact Weapon 2 | . . . . . . 1 . . . . 1 Slashing Weapon . | . . . . . . . . . . . . Piercing Weapon . | . . . . . . . . . . . . Special Melee Weapon . | . . . . . . . . . . . . Unidentified Prototypes 4 | . . . 1 . 2 . . . . 1 . Parts Lost 47 | . 1 2 . . 1 . 7 . 10 7 19 Power 7 | . 1 1 . . 1 . 1 . 1 1 1 Propulsion 15 | . . . . . . . 1 . 5 2 7 Utility 19 | . . . . . . . 4 . 3 3 9 Weapon 6 | . . 1 . . . . 1 . 1 1 2 Highest Loss Streak 16 | . 1 2 . . 1 . 7 . 8 4 16 To Critical Strikes . | . . . . . . . . . . . . Average Slot Usage (%) 86 | . 94 97 99 100 88 91 94 83 73 64 58 Engine 8 | . 14 13 14 14 7 7 5 5 1 2 . Treads 4 | . 28 18 . . . . . . . . . Leg 17 | . . 9 28 28 35 30 22 . . 1 3 Hover 5 | . . . . . . . 2 29 21 19 16 Device 5 | . 8 9 . . . 6 18 15 16 8 5 Storage 9 | . 14 14 14 14 9 7 6 5 5 5 3 Processor 11 | . . 4 14 14 13 7 6 7 8 18 20 Hackware 2 | . . . . . . 6 6 8 8 5 2 Protection 4 | . . . . . 12 15 12 2 1 1 . Energy Gun 13 | . 28 26 27 28 10 6 . . . . . Naked Turns . | . . . . . . . . . . . . Heaviest Build 47 | 11 31 30 29 29 40 44 47 37 37 31 34 Greatest Support 58 | 40 40 40 20 20 47 47 47 42 48 58 48 Greatest Overweight (x) 10 | . . 1 1 1 1 . 2 . 5 10 . Average Overweight (x) . | . . . 1 1 . . . . . . . Largest Inventory Capacity 15 | 8 15 15 15 15 15 10 10 10 10 10 10 Average Capacity 11 | 6 14 15 15 15 10 10 10 10 10 10 8 Most Carried 15 | 4 15 15 15 15 15 10 10 10 10 10 10 Average Carried 10 | 1 9 14 14 14 9 9 8 6 9 9 7 Final Capacity 15 | 8 15 15 15 15 10 10 10 10 10 10 5 Final Carried 15 | 4 14 15 15 15 10 9 10 7 10 10 1 Class Distribution -------------------- 71% | Mutant 15% | Scavenger-Mutant 7% | Commander-Mutant 4% | Hacker-Mutant Dominant Class ---------------- Mutant | -10/Materials Mutant | -10/Mines Mutant | -10/Exiles Commander-Mutant | -9/Mines Mutant | -8/Materials Mutant | -7/Factory Scavenger-Mutant | -6/Factory Hacker-Mutant | -5/Factory Hacker-Mutant | -5/DSF Mutant | -4/Factory Scavenger-Mutant | -4/Extension Resources | -11 -10 -10 -10 -9 -8 -7 -6 -5 -5 -4 -4 ----------- Run | Jun Mat Min Exi Min Mat Fac Fac Fac DSF Fac Ext Matter Collected 1290 | 247 43 55 . 45 206 56 58 . 4 285 291 Remotely . | . . . . . . . . . . . . Salvage Created 2312 | . 309 159 . . 1017 420 58 . . 229 120 Parts 119 | . 22 11 . . 50 22 2 . . 8 4 Haulers Intercepted 2 | . 1 . . . 1 . . . . . . Recyclers Shooed . | . . . . . . . . . . . . Parts Field Recycled . | . . . . . . . . . . . . Retrieved Matter . | . . . . . . . . . . . . Parts Self-Destructed . | . . . . . . . . . . . . Prevented . | . . . . . . . . . . . . Kills | -11 -10 -10 -10 -9 -8 -7 -6 -5 -5 -4 -4 ------- Run | Jun Mat Min Exi Min Mat Fac Fac Fac DSF Fac Ext Combat Hostiles Destroyed 48 | . 10 5 . . 16 8 3 . . 4 2 Melee 1 | . . . . . . 1 . . . . . Guns 39 | . 10 5 . . 15 7 2 . . . . Cannons 3 | . . . . . . . . . . 2 1 AOE 2 | . . . . . . . . . . 2 . Classes Destroyed 10 | . 4 1 . . 2 2 . . . 1 . Worker 2 | . . . . . . . . . . 2 . Builder 2 | . 1 . . . . . . . . . 1 Hauler 2 | . 1 . . . 1 . . . . . . Operator 2 | . . . . . . 1 . . . 1 . Watcher 1 | . . . . . 1 . . . . . . Swarmer 15 | . 6 3 . . . 3 3 . . . . Grunt 20 | . 4 . . . 9 3 . . . 4 . Sentry 11 | . . 2 . . 6 1 . . . . 2 Hunter 1 | . . . . . 1 . . . . . . Programmer 1 | . . . . . . 1 . . . . . Best Kill Streak 6 | . 6 5 . . 4 3 3 . . 3 1 Combat Bots Only 6 | . 6 5 . . 4 3 3 . . 3 1 Max Kills in Single Turn 2 | . 1 1 . . 1 1 1 . . 2 1 Gunslinging . | . . . . . . . . . . . . Exploded 2 | . . . . . . . . . . 2 . Melee 1 | . . . . . . 1 . . . . . Uniques/NPCs Destroyed . | . . . . . . . . . . . . Combat | -11 -10 -10 -10 -9 -8 -7 -6 -5 -5 -4 -4 -------- Run | Jun Mat Min Exi Min Mat Fac Fac Fac DSF Fac Ext Damage Taken 7283 | . 267 304 . 16 534 375 994 13 1108 920 2752 Core 1738 | . 44 75 . . 44 3 112 . 300 312 848 Absorbed by Shields 167 | . . . . . . 131 . . . . 36 Regen/Repaired (Parts) 32 | . . . . . 32 . . . . . . Core Remaining (%) 83 | 100 . . . 52 92 99 86 . 70 . . Volleys Fired 85 | . 32 14 . . 2 . 8 . . 16 13 Largest 2 | . 2 2 . . 2 . 1 . . 1 1 Hottest 90 | . 90 90 . . 80 . 28 . . 85 57 Shots Fired 239 | . 64 20 . . 76 42 8 . . 16 13 Gun 210 | . 64 20 . . 76 42 8 . . . . Cannon 29 | . . . . . . . . . . 16 13 Launcher . | . . . . . . . . . . . . Special . | . . . . . . . . . . . . Kinetic 30 | . . . . . . . 8 . . 9 13 Thermal 209 | . 64 20 . . 76 42 . . . 7 . Explosive . | . . . . . . . . . . . . Electromagnetic . | . . . . . . . . . . . . Robot Hit Streak 43 | . 14 11 . . 17 43 3 . . 6 6 Robot Miss Streak 11 | . 3 4 . . 2 4 11 . . 4 4 Penetration Max . | . . . . . . . . . . . . Secondary Targets . | . . . . . . . . . . . . Autonomous 115 | . . . . . 72 43 . . . . . Shots Hit Robots 193 | . 42 15 . . 61 37 9 . 1 12 16 Core Hits 92 | . 17 7 . . 24 13 8 . 1 19 3 Critical Kills 1 | . . . . . . 1 . . . . . Critical Parts Destroyed 3 | . . . . . . . . . . . 3 Critical Strikes 8 | . 2 1 . . . 1 . . . . 4 Burn 3 | . 2 1 . . . . . . . . . Destroy 3 | . . . . . . . . . . . 3 Smash 2 | . . . . . . 1 . . . . 1 Melee Attacks 19 | . . . . . . 4 2 2 2 . 9 Impact 19 | . . . . . . 4 2 2 2 . 9 Slashing . | . . . . . . . . . . . . Piercing . | . . . . . . . . . . . . Sneak Attacks . | . . . . . . . . . . . . Combat Hostiles . | . . . . . . . . . . . . Follow-up Attacks . | . . . . . . . . . . . . Damage Inflicted 5397 | . 507 177 . . 1754 1122 169 . 43 1049 576 Guns 3476 | . 504 177 . . 1724 987 84 . . . . Cannons 453 | . . . . . . . . . . 291 162 Explosions 788 | . . . . . 30 . . . . 758 . Melee 645 | . . . . . . 135 85 . 29 . 396 Ramming 35 | . 3 . . . . . . . 14 . 18 Kinetic 445 | . . . . . . . 84 . . 199 162 Thermal 4242 | . 504 177 . . 1724 987 . . . 850 . Explosive . | . . . . . . . . . . . . Electromagnetic 30 | . . . . . 30 . . . . . . Impact 645 | . . . . . . 135 85 . 29 . 396 Slashing . | . . . . . . . . . . . . Piercing . | . . . . . . . . . . . . Highest Corruption 8 | . . . . . 8 . . . . . . Average Corruption 5 | . . . . . 5 . . . . . . Corruption Purged . | . . . . . . . . . . . . Corruption Blocked . | . . . . . . . . . . . . Effects 17 | . . . . . 17 . . . . . . Message Errors 6 | . . . . . 6 . . . . . . Matter Fused 4 | . . . . . 4 . . . . . . Heat Flow Errors 5 | . . . . . 5 . . . . . . Energy Discharges 1 | . . . . . 1 . . . . . . Data Loss (minor) 1 | . . . . . 1 . . . . . . Overload Shots . | . . . . . . . . . . . . Overflow Damage 96 | . . . . . . 13 18 . . 18 47 Projectiles 6 | . . . . . . . . . . 6 . Explosions 12 | . . . . . . . . . . 12 . Melee 78 | . . . . . . 13 18 . . . 47 Knockbacks 6 | . . . . . . 1 . . . 5 . Impact 1 | . . . . . . 1 . . . . . Kinetic 5 | . . . . . . . . . . 5 . Secondary . | . . . . . . . . . . . . Self-Inflicted Damage 225 | . . . . . 73 . . . 7 136 9 Shots 4 | . . . . . 2 . . . . 2 . Rammed 4 | . . . . . . . . . 3 . 1 Targets Rammed 5 | . 1 . . . . . . . 3 . 1 Kicked . | . . . . . . . . . . . . Crushed 1 | . 1 . . . . . . . . . . Highest Temperature 268 | . 240 36 . . 268 . 8 . . 42 7 Average Temperature 74 | . 86 22 . . 94 . 4 . . 17 7 Received Heat Transfer 1312 | . 90 54 . 9 225 56 393 . . 190 295 Siege Activations . | . . . . . . . . . . . . Robots Corrupted . | . . . . . . . . . . . . Combat Hostiles . | . . . . . . . . . . . . Parts Fried 1 | . . . . . . . 1 . . . . Impact Corruptions 3 | . . . . . . 1 1 . . . 1 Robots Melted 1 | . . . . . 1 . . . . . . Combat Hostiles 1 | . . . . . 1 . . . . . . Parts Melted 25 | . 2 2 . . 10 10 . . . 1 . Heat Transferred 6023 | . 1487 509 . . 2208 1258 . . . 561 . Parts Sabotaged . | . . . . . . . . . . . . Parts Stolen . | . . . . . . . . . . . . Parts Stripped . | . . . . . . . . . . . . Power Chain Reactions 1 | . . . . . 1 . . . . . . Missiles Intercepted . | . . . . . . . . . . . . Alert | -11 -10 -10 -10 -9 -8 -7 -6 -5 -5 -4 -4 ------- Run | Jun Mat Min Exi Min Mat Fac Fac Fac DSF Fac Ext Peak Influence 402 | . 187 181 . 65 402 239 281 110 77 253 278 Initial 114 | . . 31 . . . 114 106 102 77 . 18 Average 106 | . 77 105 . 32 145 147 175 105 29 123 80 Maximum Alert Level 2 | . . . . . 2 1 1 . . 1 1 Low Security (%) 80 | 100 100 100 . 100 61 67 52 100 100 60 88 Level 1 19 | . . . . . 34 32 47 . . 39 11 Level 2 . | . . . . . 4 . . . . . . Level 3 . | . . . . . . . . . . . . Level 4 . | . . . . . . . . . . . . Level 5 . | . . . . . . . . . . . . High Security . | . . . . . . . . . . . . Max Security . | . . . . . . . . . . . . Squads Dispatched 14 | . 1 . . 1 2 3 1 . 1 3 2 Investigation 4 | . 1 . . 1 1 . . . . . 1 Extermination 4 | . . . . . . 2 1 . . 1 . Reinforcement 6 | . . . . . 1 1 . . 1 2 1 Assault . | . . . . . . . . . . . . Garrison . | . . . . . . . . . . . . Intercept . | . . . . . . . . . . . . Searches Triggered . | . . . . . . . . . . . . Construction Impeded 2 | . . . . . . . . . . 1 1 Haulers Reinforced . | . . . . . . . . . . . . Active Scanning Responses . | . . . . . . . . . . . . Cargo Convoy Interrupts . | . . . . . . . . . . . . Stealth | -11 -10 -10 -10 -9 -8 -7 -6 -5 -5 -4 -4 --------- Run | Jun Mat Min Exi Min Mat Fac Fac Fac DSF Fac Ext Distress Signals 3 | . . . . . . . . . . 1 2 Communications Jammed 2 | . . . . . . . . . 2 . . Distress Signals . | . . . . . . . . . . . . Times Spotted 112 | . 12 5 . 1 20 15 15 2 10 9 23 Peak Tracking Total 8 | . 6 5 . 2 4 5 8 4 8 4 7 Tactical Retreats 8 | . . 1 . . 1 2 2 . 1 1 . Traps | -11 -10 -10 -10 -9 -8 -7 -6 -5 -5 -4 -4 ------- Run | Jun Mat Min Exi Min Mat Fac Fac Fac DSF Fac Ext Traps Triggered 4 | . . . . . 1 . . 3 . . . Indirectly . | . . . . . . . . . . . . Trap Hack Attempts . | . . . . . . . . . . . . Triggered . | . . . . . . . . . . . . Disarmed . | . . . . . . . . . . . . Reprogrammed . | . . . . . . . . . . . . Reused . | . . . . . . . . . . . . Traps Extracted . | . . . . . . . . . . . . Installed . | . . . . . . . . . . . . Triggered . | . . . . . . . . . . . . Machines | -11 -10 -10 -10 -9 -8 -7 -6 -5 -5 -4 -4 ---------- Run | Jun Mat Min Exi Min Mat Fac Fac Fac DSF Fac Ext Machines Disabled 9 | . . . . . 1 1 . . . 4 3 Max in Single Turn 2 | . . . . . 1 1 . . . 2 . Machines Repaired . | . . . . . . . . . . . . Machines Sabotaged . | . . . . . . . . . . . . Overloaded Fab Kills . | . . . . . . . . . . . . Hacking | -11 -10 -10 -10 -9 -8 -7 -6 -5 -5 -4 -4 --------- Run | Jun Mat Min Exi Min Mat Fac Fac Fac DSF Fac Ext Machines Accessed 15 | . 2 . . 1 1 2 . 2 . . 7 Terminals 12 | . 2 . . . . 1 . 2 . . 7 Fabricators . | . . . . . . . . . . . . Repair Stations 2 | . . . . . 1 1 . . . . . Recycling Units . | . . . . . . . . . . . . Scanalyzers . | . . . . . . . . . . . . Garrison Access . | . . . . . . . . . . . . Total Hacks 38 | . 6 . . 1 2 5 . 8 . . 16 Successful 18 | . 5 . . 1 2 1 . 3 . . 6 Failed 20 | . 1 . . . . 4 . 5 . . 10 Catastrophic 5 | . 1 . . . . . . 2 . . 2 Database Lockouts . | . . . . . . . . . . . . Manual 11 | . 3 . 1 . . 3 . 4 . . . Terminals 34 | . 6 . . . . 4 . 8 . . 16 Fabricators . | . . . . . . . . . . . . Repair Stations 3 | . . . . . 2 1 . . . . . Recycling Units . | . . . . . . . . . . . . Scanalyzers . | . . . . . . . . . . . . Garrison Access . | . . . . . . . . . . . . Terminal Hacks 12 | . 2 . . 1 . 1 . 2 . . 6 Open Door 6 | . . . . 1 . . . . . . 5 Open DSF 1 | . . . . . . . . 1 . . . Branch Access Points 1 | . 1 . . . . . . . . . . Emergency Access Points 1 | . . . . . . . . 1 . . . Zone Layout 3 | . 1 . . . . 1 . . . . 1 Fabricator Hacks . | . . . . . . . . . . . . Repair Station Hacks 2 | . . . . . 2 . . . . . . Scan Component 1 | . . . . . 1 . . . . . . Repair 1 | . . . . . 1 . . . . . . Recycling Unit Hacks . | . . . . . . . . . . . . Scanalyzer . | . . . . . . . . . . . . Garrison Access Hacks . | . . . . . . . . . . . . Unauthorized Hacks 4 | . 3 . . . . . . 1 . . . Terminals 4 | . 3 . . . . . . 1 . . . Track 1 | . 1 . . . . . . . . . . Botnet 2 | . 1 . . . . . . 1 . . . Operators 1 | . 1 . . . . . . . . . . Fabricators . | . . . . . . . . . . . . Repair Stations . | . . . . . . . . . . . . Recycling Units . | . . . . . . . . . . . . Scanalyzers . | . . . . . . . . . . . . Garrison Access . | . . . . . . . . . . . . Data Cores Recovered 1 | . . . . . . 1 . . . . . Used 1 | . . . . . . 1 . . . . . Hacking Detections 11 | . 1 . . . 1 2 . 2 . . 5 Full Trace Events 2 | . 1 . . . . . . . . . 1 Feedback Events . | . . . . . . . . . . . . Feedback Blocked . | . . . . . . . . . . . . Robot Schematics Acquired . | . . . . . . . . . . . . Robots Built . | . . . . . . . . . . . . Authchips . | . . . . . . . . . . . . Time . | . . . . . . . . . . . . Total Robot Build Rating . | . . . . . . . . . . . . Part Schematics Acquired . | . . . . . . . . . . . . Parts Built . | . . . . . . . . . . . . Authchips . | . . . . . . . . . . . . Time . | . . . . . . . . . . . . Total Part Build Rating . | . . . . . . . . . . . . Parts Repaired 1 | . . . . . 1 . . . . . . Time 38 | . . . . . 38 . . . . . . Parts Recycled . | . . . . . . . . . . . . Recycled Matter . | . . . . . . . . . . . . Retrieved Matter . | . . . . . . . . . . . . Retrieved Components . | . . . . . . . . . . . . Parts Scanalyzed . | . . . . . . . . . . . . Part Schematics Acquired . | . . . . . . . . . . . . Parts Damaged . | . . . . . . . . . . . . Bothacking | -11 -10 -10 -10 -9 -8 -7 -6 -5 -5 -4 -4 ------------ Run | Jun Mat Min Exi Min Mat Fac Fac Fac DSF Fac Ext Used RIF Installer . | . . . . . . . . . . . . Robots Hacked . | . . . . . . . . . . . . Non-combat . | . . . . . . . . . . . . Combat . | . . . . . . . . . . . . Robot Hacks Applied . | . . . . . . . . . . . . Relay Couplers Released . | . . . . . . . . . . . . Fabnet Peak Effective % . | . . . . . . . . . . . . Robots Rewired 4 | . . . 4 . . . . . . . . Allies Hacked . | . . . . . . . . . . . . Hacks Repelled . | . . . . . . . . . . . . Allies | -11 -10 -10 -10 -9 -8 -7 -6 -5 -5 -4 -4 -------- Run | Jun Mat Min Exi Min Mat Fac Fac Fac DSF Fac Ext Total Allies 11 | . . . 4 . . . . . . . 7 Largest Group 4 | . . . 4 4 2 . . . . . 4 Highest-Rated Group 272 | . . . 45 45 29 . . . . . 272 Highest-Rated Ally 159 | . . . 21 21 21 . . . . . 159 Total Orders . | . . . . . . . . . . . . Ally Attacks 72 | . . . . 15 9 . . . . . 48 Total Damage 2585 | . . . . 170 191 . . . . . 2224 Kills 15 | . . . . 4 2 . . . . . 9 Allies Corrupted . | . . . . . . . . . . . . Allies Melted . | . . . . . . . . . . . . Intel | -11 -10 -10 -10 -9 -8 -7 -6 -5 -5 -4 -4 ------- Run | Jun Mat Min Exi Min Mat Fac Fac Fac DSF Fac Ext Robot Analysis Total . | . . . . . . . . . . . . Derelict Logs Recovered 1 | . . . . 1 . . . . . . . Drone Launches . | . . . . . . . . . . . . Drone Recoveries . | . . . . . . . . . . . . Exploration | -11 -10 -10 -10 -9 -8 -7 -6 -5 -5 -4 -4 ------------- Run | Jun Mat Min Exi Min Mat Fac Fac Fac DSF Fac Ext Turns Passed 5386 | 71 687 335 786 406 831 573 261 161 104 544 627 Spaces Moved 3108 | 44 304 169 392 201 507 459 178 157 70 309 318 Core 33 | 10 . . . . . . . . 5 16 2 Treads 446 | 34 304 108 . . . . . . . . . Legs 1965 | . . 61 392 201 507 459 150 . . 64 131 Wheels . | . . . . . . . . . . . . Hover 664 | . . . . . . . 28 157 65 229 185 Flight . | . . . . . . . . . . . . Fastest Speed 44 | 50 160 160 190 190 112 112 48 44 44 56 50 Average Speed 127 | 135 160 170 190 190 118 112 108 44 81 93 88 Slowest Speed 550 | 160 160 190 190 190 190 112 186 44 300 550 120 Overloaded Moves . | . . . . . . . . . . . . Propulsion Burnouts . | . . . . . . . . . . . . Robots Hopped . | . . . . . . . . . . . . Cave-ins Triggered . | . . . . . . . . . . . . Exploration Rate (%) 35 | 3 42 39 87 51 45 18 4 6 82 8 36 Regions Visited 11 Branch Regions 4 Pre-discovered Areas . | . . . . . . . . . . . . Known Exits Taken 5 | . 1 . . . . 1 1 1 . 1 . Unknown Exits Taken 5 | 1 . 1 1 1 1 . . . . . . Scrap Searched 3 | . . 1 . 2 . . . . . . . Spaces Dug 3 | . . . . . . . . 2 . 1 . Terrain Destroyed 91 | . . . . . 18 4 . 2 . 61 6 Melee 2 | . . . . . . . . 2 . . . Projectile 22 | . . . . . 11 4 . . . 1 6 AOE 67 | . . . . . 7 . . . . 60 . Terrain Rammed . | . . . . . . . . . . . . Walls Destroyed . | . . . . . . . . . . . . Machines Disabled . | . . . . . . . . . . . . Actions | -11 -10 -10 -10 -9 -8 -7 -6 -5 -5 -4 -4 --------- Run | Jun Mat Min Exi Min Mat Fac Fac Fac DSF Fac Ext Total 4376 | 53 441 195 437 227 739 517 233 246 114 546 628 Wait 864 | . 85 1 2 21 177 35 31 30 15 204 263 Move 3097 | 43 303 168 391 200 506 458 177 156 69 308 318 Hop . | . . . . . . . . . . . . Pick Up 63 | 4 13 3 5 2 13 6 1 3 10 1 2 Fast Attach 64 | 6 2 3 3 . 8 1 7 4 7 11 12 Attach 24 | . 1 2 . . 4 3 2 5 . 1 6 Detach 3 | . 1 . . . . . 1 . . 1 . Swap 14 | . . 1 . 1 7 2 1 1 . . 1 Drop 72 | . 3 3 9 3 22 8 3 6 8 4 3 Fire 85 | . 32 14 . . 2 . 8 . . 16 13 Melee 19 | . . . . . . 4 2 2 2 . 9 Ram 4 | . . . . . . . . . 3 . 1 Kick . | . . . . . . . . . . . . Crush 1 | . 1 . . . . . . . . . . Escape Stasis 39 | . . . . . . . . 39 . . . Rewire 27 | . . . 27 . . . . . . . . Trap . | . . . . . . . . . . . . Miscellaneous . | . . . . . . . . . . . . Route ------- -11/Junkyard -10/Materials (discovered 2 exits: [*Mat] / *Min) -10/Mines -10/Exiles -9/Mines -8/Materials -7/Factory -6/Factory -5/Factory -5/DSF -4/Factory -4/Extension History --------- Turn | Location | Event 6 | -11/Junkyard | Discovered new exit (range 15) 72 | -11/Junkyard | Entered Materials 312 | -10/Materials | Build established: Mutant 517 | -10/Materials | Discovered new exit (range 7) 623 | -10/Materials | Identified exit to Mines 759 | -10/Materials | Entered Mines 1079 | -10/Mines | Deemed a non-threat by the Exiles lab entrance 1080 | -10/Mines | Discovered new exit (range 5) 1094 | -10/Mines | Entered Exiles 1094 | -10/Exiles | Found Exiles lab destroyed 1362 | -10/Exiles | Opened EX-Vault 1368 | -10/Exiles | Found Prototype Energy Gun 1368 | -10/Exiles | Identified AWS/Thermal 1854 | -10/Exiles | Discovered new exit (range 15) 1880 | -10/Exiles | Entered Mines 1880 | -9/Mines | Accompanied by 4 allies 2027 | -9/Mines | Found a hidden stash of uninstalled traps 2128 | -9/Mines | Assembled infested the area 2131 | -9/Mines | Build established: Commander-Mutant 2133 | -9/Mines | Assisted by a Guerilla fighting off Assembled 2234 | -9/Mines | Discovered new exit (range 16) 2250 | -9/Mines | Met a Derelict shopkeep closing up shop 2253 | -9/Mines | Learned location of 1 exit from Lower Caves 2286 | -9/Mines | Entered Materials 2286 | -8/Materials | Accompanied by 2 allies 2286 | -8/Materials | Evolved 4 slots: Propulsion x2, Utility x2 2881 | -8/Materials | Build established: Mutant 2982 | -8/Materials | Discovered new exit (range 16) 3089 | -8/Materials | Repaired Carbon-fiber Leg 3117 | -8/Materials | Entered Factory 3117 | -7/Factory | Evolved 2 slots: Utility x2 3643 | -7/Factory | Discovered new exit (range 16) 3685 | -7/Factory | Identified exit to Factory 3690 | -7/Factory | Entered another Factory area 3690 | -6/Factory | Evolved 2 slots: Utility x2 3892 | -6/Factory | Discovered new exit (range 16) 3951 | -6/Factory | Identified exit to Factory 3951 | -6/Factory | Entered another Factory area 3951 | -5/Factory | Evolved 2 slots: Power x1, Propulsion x1 3977 | -5/Factory | Lost 7 parts (1p1n4u1w) 4055 | -5/Factory | Spotted B-75 Beast 4111 | -5/Factory | Identified exit to DSF 4112 | -5/Factory | Entered DSF 4140 | -5/DSF | Additional patrols routed to DSF 4174 | -5/DSF | Discovered new exit (range 15) 4206 | -5/DSF | Lost 8 parts (1p5n2u) 4215 | -5/DSF | Identified exit to Factory 4216 | -5/DSF | Entered Factory 4216 | -4/Factory | Evolved 2 slots: Propulsion x1, Weapon x1 4460 | -4/Factory | Lost 4 parts (1n2u1w) 4473 | -4/Factory | Discovered new exit (range 16) 4758 | -4/Factory | Identified exit to Extension 4760 | -4/Factory | Entered Extension 4788 | -4/Extension | Lost 3 parts (1p1n1u) 4837 | -4/Extension | Rescued a captive Derelict 4840 | -4/Extension | Rescued a captive Derelict 4920 | -4/Extension | Rescued a captive Derelict 4920 | -4/Extension | Rescued a captive Derelict 5124 | -4/Extension | Core integrity fell below 50% 5145 | -4/Extension | Core integrity fell below 20% 5155 | -4/Extension | Rescued A7 5182 | -4/Extension | Lost 16 parts (1p7n6u2w) 5237 | -4/Extension | Rescued a captive Derelict 5237 | -4/Extension | Rescued a captive Derelict 5289 | -4/Extension | Rescued a captive Derelict 5335 | -4/Extension | Spotted B-86 Titan 5383 | -4/Extension | Spotted B-86 Titan 5387 | -4/Extension | Destroyed by B-86 Titan with Hardcell Cannon Last Messages --------------- 05365_ Slug penetrates U-05 Engineer. 05369_ Acquired Imp. Medium Armor Plating. 05369_ U-05 Engineer lays Concrete. 05371_ Slug penetrates Wall. 05371_ Slug penetrates A7. 05371_ Slug penetrates W-44 Eye. 05372_ U-05 Engineer lays Concrete. 05377_ Slug penetrates A7. 05378_ W-44 Eye destroyed. 05378_ U-05 Engineer lays Concrete. 05381_ A7: "I've done al##MISSION::FAILED##" 05381_ A7 destroyed. 05381_ U-05 Engineer lays Concrete. 05382_ Acquired 10 matter. 05382_ U-05 Engineer builds a Wall. 05383_ Imp. Phase Shifter destroyed. 05383_ Slammed into H-77 Assassin. 05384_ Penetrated by Slug. 05386_ B-86 Titan activates siege mode. 05387_ Imp. Medium Armor Plating destroyed. Map ----- +----------------------------------------------------+ | # ######### ###### #?????????????????????????? | | ## ##???????## ##????# #?????????????????????????? | | #T ????????# #?????# #?????????????????????????? | | ##""##???????# #?????# #?????????????????????????? | | ?????????????# #?????# #?????????????????????????? | | ?????????????# #?????# #?????????????????????????? | | ?????????????# #?????# ###???????????????????????? | | ?????????????# #????## " ###?????????????????????? | | ?????????????# ######" " #?????????????????????? | | ?????????????# " ##?????????????????????? | | ?????????????# ####""" % #??????????????????????? | | ?????????????# T#?## % #=!#??????????????????????? | | ?????????????# ##??# !%=%##??????????????????????? | | ?????????????# #???#[=!%[%#??????????????????????? | | ?????????????###???###%=%##??????????????????????? | | ????????????????????##=["#???????????????????????? | | ?????????????????????#[*%#???????????????????????? | | ?????????????????????#%###???????????????????????? | | ?????????????????????#[##?##?##???#??????????????? | | ???????????????????###=;## ## ### ##?????????????? | | ???????????????????#""=%"% "" ""#????????????? | | ???????????????????#%"[h[% " " #????????????? | | ???????????????????# *BB #????????????? | | ???????????????????# BB% % g#????????????? | | ?????????????????### R #????????????? | | ?????????? @ g ????????? | | ?????????? g ????????? | | ?????????? ????????? | | ??????????? ?????????? | | ??????????? tt ?????????? | | ????????????######## BB ###??????????? | | ???????????????????# BB #????????????? | | ???????????????????# #????????????? | | ???????????????????# #????????????? | | ???????????????????# #????????????? | | ???????????????????######T#"""#######????????????? | | ?????????????????????????#???????????????????????? | | ?????????????????????????????????????????????????? | | | | | | | | | | | | | | | | | | | | | | | | | +----------------------------------------------------+ Best States ------------- Heat Dissipation 71 Energy Generation 31 Energy Capacity 480 Matter Stores 300 Matter Capacity 300 Sight Range 16 Robot Scan Range 18 Terrain Scan Density 10 Jamming Range 14 Cloak Strength 3 Power Amplification 60 Armor Coverage 450 Resistance: KI 30 Resistance: EM 20 Phase Shifting 10 Evasion (%) 62 Targeting Accuracy 5 Melee Accuracy 32 Target Analysis 5 Armor Integrity Analysis 30 Recoil Reduction 2 Salvage Targeting 4 Defensive Hacking 20 Item Schematics ----------------- None Robot Schematics ------------------ None Fabricated ------------ Nothing Alien Tech Used ----------------- None Achievements -------------- None Challenges ------------ None Game ------ Seed HeartSingularityBlaster Manual? 0 Play Time 00:38:33 Cumulative 406.0 hours Start 2023.10.09 @ 20:37:41 End 2023.10.09 @ 21:17:46 Sessions 1 Manual Loads 0 Difficulty Rogue Special Mode None Game No. 726 Rogue 571 Adventurer 148 Explorer 7 Win Type - Total 17 Types 15/0/1/1/0/0/0/0/0 Lore% 78 Gallery% 88 Achievement% 72 Wizard Run 0 Options --------- ASCII 0 Keyboard 0 Movement Numpad Keybinds 0 Fullscreen 2 Font 18/SmallcapsGlow Map View 76x50 Tactical HUD 1 Map Filters NONE Filters NONE Steam 1 RUN: f0d5a11d-03b3-4b76-a200-459c8db75659